fUST/lending_fUST_20250808
["ID","MTS","AMOUNT","RATE_DAILY","PERIOD"]
[377875802,1754589104372,-2605.25,0.00024657,2]
[377875803,1754589104383,-3296.2,0.00024657,2]
[377875804,1754589104393,-460.0,0.00024657,2]
[377875805,1754589104404,-991.4,0.00024657,2]
[377875806,1754589104414,-460.0,0.00024657,2]
[377875807,1754589104423,-460.0,0.00024657,2]
[377875808,1754589104433,-498.33,0.00024657,2]
[377875809,1754589104443,-1105.26,0.00024657,2]
[377875810,1754589104452,-836.29,0.00024657,2]
[377875811,1754589104461,-4226.84,0.00024657,2]
[377875812,1754589104471,-1771.43,0.00024657,2]
[377875813,1754589104480,-460.0,0.00024657,2]
[377875814,1754589104490,-460.0,0.00024657,2]
[377875815,1754589104501,-460.0,0.00024657,2]
[377875816,1754589104510,-460.0,0.00024657,2]
[377875817,1754589104521,-715.56,0.00024657,2]
[377875818,1754589104531,-1269.12,0.00024657,2]
[377875819,1754589104541,-460.0,0.00024657,2]
[377875820,1754589104551,-760.87,0.00024657,2]
[377875821,1754589104562,-3053.08,0.00024657,2]
[377875822,1754589104572,-1549.47,0.00024657,2]
[377875823,1754589104582,-150.0,0.00024658,2]
[377875824,1754589104592,-151.0,0.00024658,7]
[377875825,1754589104601,-151.0,0.00024658,7]
[377875826,1754589104611,-151.0,0.00024658,7]
[377875827,1754589104620,-151.0,0.00024658,7]
[377875828,1754589104629,-151.0,0.00024658,7]
[377875829,1754589104638,-151.0,0.00024658,7]
[377875830,1754589104648,-218.144474,0.00024658,7]
[377875831,1754589104658,-380.0,0.00024658,2]
[377875832,1754589104668,-200.0,0.00024658,15]
[377875833,1754589104677,-500.0,0.00024658,2]
[377875834,1754589104687,-500.0,0.00024673,2]
[377875835,1754589104696,-500.0,0.00024687,2]
[377875836,1754589104705,-201.35460193,0.00024687,2]
[377875837,1754589104714,-202.88886188,0.00024687,2]
[377875838,1754589104724,-152.637558,0.000247,7]
[377875839,1754589104734,-151.0,0.000247,7]
[377875840,1754589104743,-382.399396,0.000247,7]
[377875841,1754589104752,-382.399396,0.000247,7]
[377875842,1754589104761,-183.401656,0.000247,7]
[377875843,1754589104771,-173.854557,0.000247,7]
[377875844,1754589104780,-173.854557,0.000247,7]
[377875845,1754589104789,-151.0,0.000247,7]
[377875846,1754589104799,-151.0,0.000247,7]
[377875847,1754589104808,-800.0,0.00024701,2]
[377875848,1754589104817,-3000.0,0.00024712,2]
[377875849,1754589104826,-2251.34498614,0.00024712,2]
[377875850,1754589104836,-3000.0,0.00024712,2]
[377875851,1754589104845,-5888.0,0.00024725,2]
[377875852,1754589104855,-200.0,0.00024752,15]
[377875853,1754589104864,-200.0,0.00024752,15]
[377875854,1754589104873,-300.0,0.00024752,15]
[377875855,1754589104883,-2020.0,0.00024761,2]
[377875856,1754589104892,-151.0,0.00024787,7]
[377875857,1754589104903,-269.406875,0.00024787,7]
[377875858,1754589104914,-269.406875,0.00024787,7]
[377875859,1754589104923,-154.66843,0.00024787,7]
[377875860,1754589104933,-279.479306,0.00024787,7]
[377875861,1754589104943,-1157.307166,0.00024787,7]
[377875862,1754589104954,-1157.307166,0.00024787,7]
[377875863,1754589104963,-151.0,0.000248,7]
[377875864,1754589104973,-151.0,0.000248,7]
[377875865,1754589104982,-151.0,0.000248,7]
[377875866,1754589104992,-151.0,0.000248,7]
[377875867,1754589105006,-151.0,0.000248,7]
[377875868,1754589105016,-151.0,0.000248,7]
[377875869,1754589105025,-151.0,0.000248,7]
[377875870,1754589105036,-432.790972,0.000248,7]
[377875871,1754589105047,-432.790972,0.000248,7]
[377875872,1754589105057,-151.0,0.000248,7]
[377875873,1754589105067,-151.0,0.000248,7]
[377875874,1754589105078,-269.406875,0.000248,7]
[377875875,1754589105087,-269.406875,0.000248,7]
[377875876,1754589105096,-1338.536062,0.000248,7]
[377875877,1754589105105,-151.0,0.000248,7]
[377875878,1754589105115,-217.997612,0.000248,7]
[377875879,1754589105125,-173.854557,0.000248,7]
[377875880,1754589105134,-173.854557,0.000248,7]
[377875881,1754589105143,-151.0,0.000248,7]
[377875882,1754589105153,-199.155216,0.000248,7]
[377875883,1754589105165,-1157.307166,0.000248,7]
[377875884,1754589105175,-1157.307166,0.000248,7]
[377875885,1754589105185,-150.0,0.00024812,2]
[377875886,1754589105194,-2020.0,0.00024857,2]
[377875887,1754589105203,-5888.0,0.00024864,2]
[377875888,1754589105213,-169.288765,0.000249,7]
[377875889,1754589105222,-151.0,0.000249,7]
[377875890,1754589105231,-151.0,0.000249,7]
[377875891,1754589105241,-151.0,0.000249,7]
[377875892,1754589105250,-151.0,0.000249,7]
[377875893,1754589105266,-151.0,0.000249,7]
[377875894,1754589105276,-151.0,0.000249,7]
[377875895,1754589105286,-151.0,0.000249,7]
[377875896,1754589105295,-151.0,0.000249,7]
[377875897,1754589105308,-151.0,0.000249,7]
[377875898,1754589105318,-382.399396,0.000249,7]
[377875899,1754589105328,-382.399396,0.000249,7]
[377875900,1754589105337,-151.0,0.000249,7]
[377875901,1754589105347,-151.0,0.000249,7]
[377875902,1754589105358,-269.406875,0.000249,7]
[377875903,1754589105367,-269.406875,0.000249,7]
[377875904,1754589105378,-151.0,0.000249,7]
[377875905,1754589105388,-151.0,0.000249,7]
[377875906,1754589105398,-1338.536062,0.000249,7]
[377875907,1754589105407,-151.0,0.000249,7]
[377875908,1754589105418,-286.083436,0.000249,7]
[377875909,1754589105427,-173.854557,0.000249,7]
[377875910,1754589105436,-173.854557,0.000249,7]
[377875911,1754589105447,-151.0,0.000249,7]
[377875912,1754589105456,-151.0,0.000249,7]
[377875913,1754589105465,-1157.307166,0.000249,7]
[377875914,1754589105474,-1157.307166,0.000249,7]
[377875915,1754589105485,-1226.812263,0.000249,7]
[377875916,1754589105494,-1226.812263,0.000249,7]
[377875917,1754589105504,-239.192816,0.000249,7]
[377875918,1754589105513,-239.192816,0.000249,7]
[377875919,1754589105523,-353646.11384555,0.000249,2]
[377875920,1754589105859,-279488.71812745,0.000249,2]
[377875921,1754589105869,-351.36180955,0.00024912,2]
[377875922,1754589105878,-2042.35623351,0.00024912,2]
[377875923,1754589105888,-3000.0,0.00024912,2]
[377875924,1754589105898,-3000.0,0.00024912,2]
[377875925,1754589105908,-800.0,0.00024922,2]
[377875926,1754589105917,-569.86,0.00024931,2]
[377875927,1754589105927,-460.0,0.00024931,2]
[377875928,1754589105936,-460.0,0.00024931,2]
[377875929,1754589105946,-460.0,0.00024931,2]
[377875930,1754589105956,-460.0,0.00024931,2]
[377875931,1754589105966,-460.0,0.00024931,2]
[377875932,1754589105977,-460.0,0.00024931,2]
[377875933,1754589105988,-726.3,0.00024931,2]
[377875934,1754589106001,-4258.89,0.00024931,2]
[377875935,1754589106010,-460.0,0.00024931,2]
[377875936,1754589106020,-541.96,0.00024931,2]
[377875937,1754589106030,-460.0,0.00024931,2]
[377875938,1754589106041,-577.70841861,0.00024931,2]
[377875939,1754589106050,-460.0,0.00024931,2]
[377875940,1754589106059,-1141.82,0.00024931,2]
[377875941,1754589106069,-460.0,0.00024931,2]
[377875942,1754589106079,-460.0,0.00024931,2]
[377875943,1754589106094,-460.0,0.00024931,2]
[377875944,1754589106103,-460.0,0.00024931,2]
[377875945,1754589106112,-460.0,0.00024931,2]
[377875946,1754589106122,-460.0,0.00024931,2]
[377875947,1754589106131,-1232.26,0.00024931,2]
[377875948,1754589106142,-460.0,0.00024931,2]
[377875949,1754589106152,-460.0,0.00024931,2]
[377875950,1754589106165,-1649.4,0.00024931,2]
[377875951,1754589106175,-460.0,0.00024931,2]
[377875952,1754589106185,-270.55235885,0.00024931,2]
[377875953,1754589106194,-460.0,0.00024931,2]
[377875954,1754589106205,-460.0,0.00024931,2]
[377875955,1754589106214,-460.0,0.00024931,2]
[377875956,1754589106224,-460.0,0.00024931,2]
[377875957,1754589106233,-920.95,0.00024931,2]
[377875958,1754589106243,-460.0,0.00024931,2]
[377875959,1754589106252,-460.0,0.00024931,2]
[377875960,1754589106261,-785.09,0.00024931,2]
[377875961,1754589106271,-460.0,0.00024931,2]
[377875962,1754589106280,-460.0,0.00024931,2]
[377875963,1754589106290,-1321.78,0.00024931,2]
[377875964,1754589106299,-930.97,0.00024931,2]
[377875965,1754589106309,-501.46,0.00024931,2]
[377875966,1754589106320,-460.0,0.00024931,2]
[377875967,1754589106330,-814.23,0.00024931,2]
[377875968,1754589106339,-1720.3,0.00024931,2]
[377875969,1754589106350,-460.0,0.00024931,2]
[377875970,1754589106360,-460.0,0.00024931,2]
[377875971,1754589106369,-460.0,0.00024931,2]
[377875972,1754589106379,-460.0,0.00024931,2]
[377875973,1754589106388,-460.0,0.00024931,2]
[377875974,1754589106398,-397.84847117,0.00024931,2]
[377875975,1754589106408,-460.0,0.00024931,2]
[377875976,1754589106417,-536.85,0.00024931,2]
[377875977,1754589106427,-1339.1,0.00024931,2]
[377875978,1754589106437,-460.0,0.00024931,2]
[377875979,1754589106447,-460.0,0.00024931,2]
[377875980,1754589106456,-460.0,0.00024931,2]
[377875981,1754589106466,-460.0,0.00024931,2]
[377875982,1754589106476,-460.0,0.00024931,2]
[377875983,1754589106485,-596.47513349,0.00024931,2]
[377875984,1754589106494,-808.27,0.00024931,2]
[377875985,1754589106504,-460.0,0.00024931,2]
[377875986,1754589106514,-460.0,0.00024931,2]
[377875987,1754589106524,-460.0,0.00024931,2]
[377875988,1754589106533,-460.0,0.00024931,2]
[377875989,1754589106543,-460.0,0.00024931,2]
[377875990,1754589106552,-460.0,0.00024931,2]
[377875991,1754589106561,-465.24,0.00024931,2]
[377875992,1754589106571,-1315.05,0.00024931,2]
[377875993,1754589106580,-460.0,0.00024931,2]
[377875994,1754589106589,-460.0,0.00024931,2]
[377875995,1754589106599,-460.0,0.00024931,2]
[377875996,1754589106608,-460.0,0.00024931,2]
[377875997,1754589106618,-460.0,0.00024931,2]
[377875998,1754589106627,-216.43895631,0.00024931,2]
[377875999,1754589106637,-460.0,0.00024931,2]
[377876000,1754589106647,-460.0,0.00024931,2]
[377876001,1754589106657,-460.0,0.00024931,2]
[377876002,1754589106667,-521.0,0.00024931,2]
[377876003,1754589106677,-460.0,0.00024931,2]
[377876004,1754589106687,-1003.1,0.00024931,2]
[377876005,1754589106698,-842.23,0.00024931,2]
[377876006,1754589106709,-512.74,0.00024931,2]
[377876007,1754589106719,-460.0,0.00024931,2]
[377876008,1754589106729,-460.0,0.00024931,2]
[377876009,1754589106738,-460.0,0.00024931,2]
[377876010,1754589106750,-460.0,0.00024931,2]
[377876011,1754589106760,-460.0,0.00024931,2]
[377876012,1754589106769,-2023.68,0.00024931,2]
[377876013,1754589106779,-460.0,0.00024931,2]
[377876014,1754589106789,-1722.81,0.00024931,2]
[377876015,1754589106798,-460.0,0.00024931,2]
[377876016,1754589106807,-460.0,0.00024931,2]
[377876017,1754589106817,-1805.48,0.00024931,2]
[377876018,1754589106827,-479.16,0.00024931,2]
[377876019,1754589106836,-475.28,0.00024931,2]
[377876020,1754589106846,-460.0,0.00024931,2]
[377876021,1754589106855,-511.83,0.00024931,2]
[377876022,1754589106865,-1677.96,0.00024931,2]
[377876023,1754589106877,-496.73,0.00024931,2]
[377876024,1754589106888,-460.0,0.00024931,2]
[377876025,1754589106899,-2679.67,0.00024931,2]
[377876026,1754589106909,-479.16,0.00024931,2]
[377876027,1754589106919,-1601.12,0.00024931,2]
[377876028,1754589106930,-2200.78,0.00024931,2]
[377876029,1754589106939,-1202.59,0.00024931,2]
[377876030,1754589106948,-460.0,0.00024931,2]
[377876031,1754589106957,-893.12,0.00024931,2]
[377876032,1754589106970,-1228.68,0.00024931,2]
[377876033,1754589106979,-460.0,0.00024931,2]
[377876034,1754589106989,-460.0,0.00024931,2]
[377876035,1754589107002,-460.0,0.00024931,2]
[377876036,1754589107011,-460.0,0.00024931,2]
[377876037,1754589107021,-2063.1,0.00024931,2]
[377876038,1754589107030,-4568.18,0.00024931,2]
[377876039,1754589107039,-1013.49,0.00024931,2]
[377876040,1754589107049,-460.0,0.00024931,2]
[377876041,1754589107059,-460.0,0.00024931,2]
[377876042,1754589107071,-541.96,0.00024931,2]
[377876043,1754589107080,-1175.66,0.00024931,2]
[377876044,1754589107090,-460.0,0.00024931,2]
[377876045,1754589107100,-588.41,0.00024931,2]
[377876046,1754589107110,-2183.26,0.00024931,2]
[377876047,1754589107120,-460.0,0.00024931,2]
[377876048,1754589107130,-671.87,0.00024931,2]
[377876049,1754589107139,-9393.66,0.00024931,2]
[377876050,1754589107149,-6185.67,0.00024931,2]
[377876051,1754589107159,-3715.56,0.00024931,2]
[377876052,1754589107169,-460.0,0.00024931,2]
[377876053,1754589107179,-460.0,0.00024931,2]
[377876054,1754589107188,-2605.25,0.00024931,2]
[377876055,1754589107198,-617.56,0.00024931,2]
[377876056,1754589107207,-3296.2,0.00024931,2]
[377876057,1754589107217,-460.0,0.00024931,2]
[377876058,1754589107226,-991.4,0.00024931,2]
[377876059,1754589107236,-460.0,0.00024931,2]
[377876060,1754589107245,-460.0,0.00024931,2]
[377876061,1754589107254,-498.33,0.00024931,2]
[377876062,1754589107264,-1105.26,0.00024931,2]
[377876063,1754589107274,-836.29,0.00024931,2]
[377876064,1754589107283,-4226.84,0.00024931,2]
[377876065,1754589107293,-1771.43,0.00024931,2]
[377876066,1754589107303,-460.0,0.00024931,2]
[377876067,1754589107313,-460.0,0.00024931,2]
[377876068,1754589107322,-460.0,0.00024931,2]
[377876069,1754589107332,-460.0,0.00024931,2]
[377876070,1754589107342,-715.56,0.00024931,2]
[377876071,1754589107352,-1269.12,0.00024931,2]
[377876072,1754589107362,-263.83118671,0.00024931,2]
[377876073,1754589107371,-760.87,0.00024931,2]
[377876074,1754589107381,-3053.08,0.00024931,2]
[377876075,1754589107391,-1549.47,0.00024931,2]
[377876076,1754589107401,-500.0,0.00024932,2]
[377876077,1754589107410,-500.0,0.00024961,2]
[377876078,1754589107420,-2552.80375313,0.0002498,2]
[377876079,1754589107430,-560.0,0.00024981,2]
[377876080,1754589107439,-5888.0,0.00024989,2]
[377876081,1754589107449,-200.0,0.00025,2]
[377876082,1754589107458,-1066.0568079,0.00025,2]
[377876083,1754589107468,-1196.68361355,0.00025,2]
[377876084,1754589107477,-35782.61192982,0.00025,2]
[377876085,1754589107487,-208.15728733,0.00025,2]
[377876086,1754589107497,-359.33083189,0.00025,2]
[377876087,1754589107506,-500.0,0.00025,2]
[377876088,1754589107515,-5131.76704801,0.00025,10]
[377876089,1754589107525,-600.0,0.00025,2]
[377876090,1754589107534,-20000.0,0.00025,10]
[377876091,1754589107544,-432.790972,0.00025,7]
[377876092,1754589107553,-432.790972,0.00025,7]
[377876093,1754589107563,-9611.0687433,0.00025,2]
[377876094,1754589107854,-110027.18632284,0.00025,2]
[377876095,1754589107866,-151.0,0.00025,7]
[377876096,1754589107875,-151.0,0.00025,7]
[377876097,1754589107883,-151.0,0.00025,7]
[377876098,1754589107893,-1226.812263,0.00025,7]
[377876099,1754589107902,-1226.812263,0.00025,7]
[377876100,1754589107913,-239.192816,0.00025,7]
[377876101,1754589107923,-239.192816,0.00025,7]
[377876102,1754589107932,-461.3695942,0.00025,10]
[377876103,1754589107943,-527.57568145,0.00025,10]
[377876104,1754589107954,-160.0,0.00025,10]
[377876105,1754589107964,-216.52217562,0.00025,10]
[377876106,1754589107974,-160.0,0.00025,10]
[377876107,1754589107984,-231.83071243,0.00025,10]
[377876108,1754589107995,-12660.90439413,0.00025,10]
[377876109,1754589108007,-160.0,0.00025,10]
[377876110,1754589108017,-215.31718835,0.00025,10]
[377876111,1754589108026,-160.0,0.00025,10]
[377876112,1754589108035,-160.0,0.00025,10]
[377876113,1754589108046,-312.16666667,0.00025,10]
[377876114,1754589108055,-160.0,0.00025,10]
[377876115,1754589108065,-150.59244816,0.0002509,2]
[377876116,1754589108075,-5888.0,0.00025103,2]
[377876117,1754589108085,-151.0,0.00025103,7]
[377876118,1754589108094,-188.778938,0.00025103,7]
[377876119,1754589108104,-151.0,0.00025103,7]
[377876120,1754589108114,-10690.5963194,0.00025164,2]
[377876121,1754589108124,-800.0,0.00025194,2]
[377876122,1754589108134,-10000.0,0.000252,3]
[377876123,1754589108144,-151.0,0.000252,7]
[377876124,1754589108154,-382.399396,0.000252,7]
[377876125,1754589108167,-382.399396,0.000252,7]
[377876126,1754589108176,-151.0,0.000252,7]
[377876127,1754589108184,-151.0,0.000252,7]
[377876128,1754589108194,-269.406875,0.000252,7]
[377876129,1754589108203,-269.406875,0.000252,7]
[377876130,1754589108213,-151.0,0.000252,7]
[377876131,1754589108222,-1338.536062,0.000252,7]
[377876132,1754589108232,-173.854557,0.000252,7]
[377876133,1754589108242,-173.854557,0.000252,7]
[377876134,1754589108251,-151.0,0.000252,7]
[377876135,1754589108261,-1157.307166,0.000252,7]
[377876136,1754589108271,-1157.307166,0.000252,7]
[377876137,1754589108281,-151.0,0.00025205,7]
[377876138,1754589108290,-151.0,0.00025205,7]
[377876139,1754589108300,-151.0,0.00025205,7]
[377876140,1754589108309,-151.0,0.00025205,7]
[377876141,1754589108318,-151.0,0.00025205,7]
[377876142,1754589108328,-569.86,0.00025205,2]
[377876143,1754589108337,-460.0,0.00025205,2]
[377876144,1754589108347,-460.0,0.00025205,2]
[377876145,1754589108356,-460.0,0.00025205,2]
[377876146,1754589108366,-460.0,0.00025205,2]
[377876147,1754589108375,-460.0,0.00025205,2]
[377876148,1754589108385,-460.0,0.00025205,2]
[377876149,1754589108395,-726.3,0.00025205,2]
[377876150,1754589108405,-4258.89,0.00025205,2]
[377876151,1754589108414,-460.0,0.00025205,2]
[377876152,1754589108424,-541.96,0.00025205,2]
[377876153,1754589108435,-1141.82,0.00025205,2]
[377876154,1754589108445,-460.0,0.00025205,2]
[377876155,1754589108454,-460.0,0.00025205,2]
[377876156,1754589108464,-460.0,0.00025205,2]
[377876157,1754589108474,-460.0,0.00025205,2]
[377876158,1754589108485,-531.82300881,0.00025205,2]
[377876159,1754589108494,-460.0,0.00025205,2]
[377876160,1754589108503,-399.37608164,0.00025205,2]
[377876161,1754589108513,-1232.26,0.00025205,2]
[377876162,1754589108523,-460.0,0.00025205,2]
[377876163,1754589108532,-1649.4,0.00025205,2]
[377876164,1754589108542,-460.0,0.00025205,2]
[377876165,1754589108551,-460.0,0.00025205,2]
[377876166,1754589108563,-460.0,0.00025205,2]
[377876167,1754589108574,-460.0,0.00025205,2]
[377876168,1754589108584,-920.95,0.00025205,2]
[377876169,1754589108594,-460.0,0.00025205,2]
[377876170,1754589108608,-460.0,0.00025205,2]
[377876171,1754589108618,-785.09,0.00025205,2]
[377876172,1754589108628,-460.0,0.00025205,2]
[377876173,1754589108637,-460.0,0.00025205,2]
[377876174,1754589108647,-1321.78,0.00025205,2]
[377876175,1754589108657,-930.97,0.00025205,2]
[377876176,1754589108667,-501.46,0.00025205,2]
[377876177,1754589108678,-460.0,0.00025205,2]
[377876178,1754589108689,-814.23,0.00025205,2]
[377876179,1754589108699,-1720.3,0.00025205,2]
[377876180,1754589108709,-460.0,0.00025205,2]
[377876182,1754589108719,-460.0,0.00025205,2]
[377876183,1754589108729,-501.76654009,0.00025205,2]
[377876184,1754589108739,-460.0,0.00025205,2]
[377876185,1754589108748,-460.0,0.00025205,2]
[377876186,1754589108758,-536.85,0.00025205,2]
[377876187,1754589108769,-1339.1,0.00025205,2]
[377876188,1754589108779,-460.0,0.00025205,2]
[377876189,1754589108789,-460.0,0.00025205,2]
[377876190,1754589108799,-460.0,0.00025205,2]
[377876191,1754589108809,-460.0,0.00025205,2]
[377876192,1754589108818,-460.0,0.00025205,2]
[377876193,1754589108827,-460.0,0.00025205,2]
[377876194,1754589108837,-808.27,0.00025205,2]
[377876195,1754589108847,-460.0,0.00025205,2]
[377876196,1754589108856,-460.0,0.00025205,2]
[377876197,1754589108866,-460.0,0.00025205,2]
[377876198,1754589108875,-460.0,0.00025205,2]
[377876199,1754589108885,-460.0,0.00025205,2]
[377876200,1754589108895,-465.24,0.00025205,2]
[377876201,1754589108905,-1315.05,0.00025205,2]
[377876202,1754589108915,-468.37374156,0.00025205,2]
[377876203,1754589108926,-460.0,0.00025205,2]
[377876204,1754589108935,-460.0,0.00025205,2]
[377876205,1754589108945,-460.0,0.00025205,2]
[377876206,1754589108955,-460.0,0.00025205,2]
[377876207,1754589108965,-460.0,0.00025205,2]
[377876208,1754589108975,-460.0,0.00025205,2]
[377876209,1754589108985,-521.0,0.00025205,2]
[377876210,1754589108997,-460.0,0.00025205,2]
[377876211,1754589109009,-1003.1,0.00025205,2]
[377876212,1754589109018,-842.23,0.00025205,2]
[377876213,1754589109029,-512.74,0.00025205,2]
[377876214,1754589109039,-523.13906533,0.00025205,2]
[377876215,1754589109049,-460.0,0.00025205,2]
[377876216,1754589109059,-460.0,0.00025205,2]
[377876217,1754589109069,-460.0,0.00025205,2]
[377876218,1754589109080,-460.0,0.00025205,2]
[377876219,1754589109091,-2023.68,0.00025205,2]
[377876220,1754589109100,-460.0,0.00025205,2]
[377876221,1754589109110,-1722.81,0.00025205,2]
[377876222,1754589109120,-460.0,0.00025205,2]
[377876223,1754589109130,-460.0,0.00025205,2]
[377876224,1754589109139,-1805.48,0.00025205,2]
[377876225,1754589109149,-479.16,0.00025205,2]
[377876226,1754589109159,-475.28,0.00025205,2]
[377876227,1754589109169,-460.0,0.00025205,2]
[377876228,1754589109179,-511.83,0.00025205,2]
[377876229,1754589109188,-1677.96,0.00025205,2]
[377876230,1754589109198,-496.73,0.00025205,2]
[377876231,1754589109208,-460.0,0.00025205,2]
[377876232,1754589109217,-2679.67,0.00025205,2]
[377876233,1754589109228,-479.16,0.00025205,2]
[377876234,1754589109237,-1601.12,0.00025205,2]
[377876235,1754589109247,-2200.78,0.00025205,2]
[377876236,1754589109257,-1202.59,0.00025205,2]
[377876237,1754589109266,-460.0,0.00025205,2]
[377876238,1754589109276,-893.12,0.00025205,2]
[377876239,1754589109286,-1228.68,0.00025205,2]
[377876240,1754589109296,-460.0,0.00025205,2]
[377876241,1754589109306,-460.0,0.00025205,2]
[377876242,1754589109316,-309.0338596,0.00025205,2]
[377876243,1754589109325,-2063.1,0.00025205,2]
[377876244,1754589109336,-4568.18,0.00025205,2]
[377876245,1754589109347,-1013.49,0.00025205,2]
[377876246,1754589109356,-460.0,0.00025205,2]
[377876247,1754589109366,-460.0,0.00025205,2]
[377876248,1754589109375,-541.96,0.00025205,2]
[377876249,1754589109384,-1175.66,0.00025205,2]
[377876250,1754589109395,-460.0,0.00025205,2]
[377876251,1754589109404,-588.41,0.00025205,2]
[377876252,1754589109414,-354.8,0.00025205,2]
[377876253,1754589109426,-2183.26,0.00025205,2]
[377876254,1754589109436,-671.87,0.00025205,2]
[377876255,1754589109447,-9393.66,0.00025205,2]
[377876256,1754589109458,-6185.67,0.00025205,2]
[377876257,1754589109468,-3715.56,0.00025205,2]
[377876258,1754589109478,-460.0,0.00025205,2]
[377876259,1754589109488,-2605.25,0.00025205,2]
[377876260,1754589109497,-617.56,0.00025205,2]
[377876261,1754589109507,-3296.2,0.00025205,2]
[377876262,1754589109516,-460.0,0.00025205,2]
[377876263,1754589109525,-991.4,0.00025205,2]
[377876264,1754589109535,-460.0,0.00025205,2]
[377876265,1754589109544,-460.0,0.00025205,2]
[377876266,1754589109554,-498.33,0.00025205,2]
[377876267,1754589109563,-1105.26,0.00025205,2]
[377876268,1754589109574,-836.29,0.00025205,2]
[377876269,1754589109583,-4226.84,0.00025205,2]
[377876270,1754589109593,-1771.43,0.00025205,2]
[377876271,1754589109603,-460.0,0.00025205,2]
[377876272,1754589109613,-460.0,0.00025205,2]
[377876273,1754589109623,-460.0,0.00025205,2]
[377876274,1754589109633,-460.0,0.00025205,2]
[377876275,1754589109643,-715.56,0.00025205,2]
[377876276,1754589109652,-1269.12,0.00025205,2]
[377876277,1754589109662,-3053.08,0.00025205,2]
[377876278,1754589109672,-760.87,0.00025205,2]
[377876279,1754589109681,-1549.47,0.00025205,2]
[377876280,1754589109691,-500.0,0.00025206,2]
[377876281,1754589109700,-1000.0,0.00025221,2]
[377876282,1754589109709,-500.0,0.00025235,2]
[377876283,1754589109719,-3500.0,0.0002526,2]
[377876284,1754589109728,-3500.0,0.0002526,2]
[377876285,1754589109738,-220.053,0.00025292,2]
[377876286,1754589109747,-250.0,0.00025292,2]
[377876287,1754589109759,-260.849,0.00025292,2]
[377876288,1754589109768,-219.412,0.00025292,2]
[377876289,1754589109778,-2020.0,0.00025338,2]
[377876290,1754589109789,-5888.0,0.00025358,2]
[377876291,1754589109800,-5888.0,0.00025382,2]
[377876292,1754589109811,-2351.0,0.0002539,2]
[377876293,1754589109822,-587.0,0.00025392,2]
[377876294,1754589109833,-800.0,0.00025409,2]
[377876295,1754589109843,-248.00523529,0.00025452,14]
[377876296,1754589109854,-3500.0,0.0002546,2]
[377876297,1754589109864,-3500.0,0.0002546,2]
[377876298,1754589109874,-900.0,0.00025469,3]
[377876299,1754589109884,-1943.82885266,0.0002547,2]
[377876300,1754589109896,-569.86,0.00025479,2]
[377876301,1754589109905,-460.0,0.00025479,2]
[377876302,1754589109914,-460.0,0.00025479,2]